bitfinex/quotes_ETHUSD_20260302
["timestamp","ask_amount","ask_price","bid_price","bid_amount"]
[1772440309365,1.81523965,1929.0,1928.6,0.0011]
[1772440310659,3.11131513,1928.9,1928.6,0.0011]
[1772440310865,1.81523965,1928.8,1928.6,0.0011]
[1772440311541,2.14913146,1929.2,1928.6,0.0011]
[1772440311542,1.81523965,1929.2,1928.6,0.0011]
[1772440311872,3.56023965,1929.2,1928.6,0.0011]
[1772440312844,1.29594111,1929.1,1928.6,0.0011]
[1772440313342,1.81523965,1929.2,1928.6,0.0011]
[1772440313546,1.745,1929.4,1928.8,1.56174285]
[1772440314072,3.11091371,1929.5,1928.8,1.56174285]
[1772440315207,3.11091371,1929.5,1928.9,1.29607548]
[1772440315672,1.81523965,1929.5,1928.9,1.29607548]
[1772440315870,3.11073784,1929.8,1929.0,1.56134181]
[1772440316772,0.00153886,1930.0,1929.1,1.56110272]
[1772440316972,1.2968974,1930.0,1929.3,3.71023418]
[1772440317159,0.00153886,1930.0,1929.4,1.2957396]
[1772440317364,1.81677851,1930.0,1929.3,1.29575621]
[1772440317766,1.81523965,1929.9,1929.0,1.56110272]
[1772440317961,1.81523965,1929.9,1929.1,1.29594111]
[1772440318483,0.001,1929.6,1929.1,1.29594111]
[1772440319178,0.001,1929.6,1929.0,5.18382596]
[1772440319179,0.001,1929.6,1928.9,2.85771381]
[1772440319391,0.001,1929.6,1929.0,1.56053833]
[1772440319590,3.11041874,1930.3,1929.5,3.80709468]
[1772440319904,1.81523965,1930.3,1929.5,3.80709468]
[1772440320112,1.81523965,1930.3,1929.6,1.65796322]
[1772440320257,3.11038176,1930.3,1929.6,1.65796322]
[1772440320454,1.81523965,1930.5,1929.5,3.80681091]
[1772440320701,1.81523965,1930.3,1929.5,1.65767945]
[1772440321362,1.81523965,1930.3,1929.6,1.2956053]
[1772440321669,3.111215,1930.6,1929.7,1.66030996]
[1772440321867,1.81523965,1930.5,1929.7,1.66030996]
[1772440322491,1.81523965,1930.2,1929.6,1.2956053]
[1772440322692,1.81523965,1930.4,1929.6,2.95558088]
[1772440323578,1.29513547,1930.3,1929.6,2.95558088]
[1772440324086,1.81523965,1930.1,1929.4,1.29568783]
[1772440324462,3.11037512,1930.3,1929.5,1.65924967]
[1772440325560,3.11037512,1930.3,1929.6,1.2956053]
[1772440325983,1.81523965,1930.2,1929.6,1.2956053]
[1772440327289,1.81523965,1930.2,1929.5,2.95487304]
[1772440328276,3.11044614,1930.2,1929.5,2.95487304]
[1772440328475,1.81523965,1930.2,1929.5,2.95487304]
[1772440328696,3.11044871,1930.2,1929.5,2.95487304]
[1772440329196,1.81523965,1930.1,1929.4,1.2957396]
[1772440329997,1.81523965,1930.1,1929.7,0.0011]
[1772440330227,1.81523965,1930.0,1929.7,0.0011]
[1772440331798,1.81523965,1930.0,1929.5,0.0011]
[1772440331998,5.18843964,1930.1,1929.5,0.0011]
[1772440331999,1.81523965,1929.8,1929.5,0.0011]
[1772440332205,3.11076932,1929.8,1929.5,0.0011]
[1772440333016,6.92509007,1930.1,1929.5,0.0011]
[1772440333017,6.99618211,1930.2,1929.5,1.65746487]
[1772440333307,1.81523965,1930.1,1929.5,0.0011]
[1772440334013,1.81523965,1930.1,1929.5,1.65688897]
[1772440334188,1.81623965,1930.3,1929.6,2.95139427]
[1772440334383,3.11138242,1930.3,1929.6,2.95139427]
[1772440334604,1.81623965,1930.3,1929.6,2.95139427]
[1772440335107,0.001,1930.3,1929.7,1.65448979]
[1772440336175,0.001,1930.3,1930.0,1.65698489]
[1772440337478,0.001,1930.3,1929.8,2.95341976]
[1772440338380,2.04783482,1930.3,1929.6,1.29555695]
[1772440338579,2.04683482,1930.2,1929.6,2.95272701]
[1772440338878,0.001,1930.3,1929.6,2.95272701]
[1772440339077,0.001,1930.3,1929.7,1.65717006]
[1772440339915,0.001,1930.3,1929.9,3.19150612]
[1772440340223,0.001,1930.3,1929.9,1.65636534]
[1772440340389,2.04783482,1930.3,1929.6,1.29553816]
[1772440340586,2.04783482,1930.3,1929.6,5.18225898]
[1772440340912,0.001,1930.3,1929.9,1.65554413]
[1772440341134,0.001,1930.6,1930.1,1.65454413]
[1772440342285,0.001,1930.3,1930.1,1.65454413]
[1772440342485,0.001,1930.3,1930.2,1.29520256]
[1772440343727,0.001,1930.6,1930.3,1.65199777]
[1772440344712,0.001,1930.6,1930.4,2.94617024]
[1772440345255,0.001,1930.6,1930.5,1.65110187]
[1772440345525,0.00153886,1931.0,1930.5,1.65110187]
[1772440346029,2.04683482,1930.9,1930.2,5.18059051]
[1772440346328,2.04683482,1930.8,1930.2,5.18059051]
[1772440348094,2.04683482,1930.7,1930.1,2.94544124]
[1772440348895,2.04683482,1930.9,1930.1,2.94544124]
[1772440349095,2.04683482,1930.8,1930.1,2.94544124]
[1772440349528,2.04837368,1931.0,1930.2,3.18157708]
[1772440349701,3.3430429,1931.0,1930.3,1.6464363]
[1772440349898,2.04683482,1930.9,1930.3,1.6464363]
[1772440350499,2.04683482,1930.5,1929.8,1.29543344]
[1772440351221,2.04683482,1930.4,1929.7,1.29658874]
[1772440351615,2.04683482,1930.4,1929.7,2.94100047]
[1772440352630,1.74,1930.7,1930.0,3.17853437]
[1772440352931,1.29482658,1930.8,1930.0,3.17853437]
[1772440352932,3.3416614,1930.8,1930.0,3.17853437]
[1772440353628,2.04683482,1930.7,1930.1,1.29526967]
[1772440354633,2.04783482,1930.7,1930.1,1.29526967]
[1772440355100,2.04783482,1930.7,1930.1,2.93651371]
[1772440355302,2.04783482,1930.7,1930.1,1.29526967]
[1772440355515,2.04683482,1930.6,1930.0,1.29528718]
[1772440355709,2.04683482,1930.5,1930.0,1.29528718]
[1772440356119,2.04683482,1930.5,1929.8,2.74753115]
[1772440356318,2.04683482,1930.4,1929.8,0.0011]
[1772440357038,2.04683482,1930.2,1929.8,0.0011]
[1772440357839,3.34207191,1930.2,1929.8,0.0011]
[1772440358936,2.04683482,1930.2,1929.8,0.0011]
[1772440359139,3.34204963,1930.2,1929.8,0.0011]
[1772440359436,2.04683482,1930.2,1929.8,0.0011]
[1772440359633,2.04683482,1930.1,1929.8,0.0011]
[1772440360036,3.34213944,1930.1,1929.8,0.0011]
[1772440360283,2.04683482,1930.0,1929.5,0.0011]
[1772440362141,3.34217806,1930.0,1929.5,0.0011]
[1772440362340,2.04683482,1929.9,1929.5,0.0011]
[1772440363141,3.34204033,1930.2,1929.5,1.63322139]
[1772440363440,1.29520551,1930.2,1929.5,1.63322139]
[1772440363637,2.04683482,1930.1,1929.5,1.63322139]
[1772440364123,2.04683482,1930.1,1929.6,1.2956053]
[1772440364323,1.741,1930.2,1929.6,2.92594161]
[1772440365042,2.04783482,1930.7,1930.1,1.53514078]
[1772440365220,0.001,1930.7,1930.1,3.16368138]
[1772440365420,0.00153886,1931.0,1930.5,3.16187536]
[1772440365622,2.04683482,1931.5,1930.7,1.53514078]
[1772440365825,4.37654954,1931.8,1930.8,6.14701614]
[1772440366028,2.04683482,1931.7,1930.9,2.98514078]
[1772440366319,2.04683482,1931.7,1931.0,1.29466597]
[1772440366643,3.62386694,1931.8,1931.2,1.53514078]
[1772440366644,0.001,1931.8,1931.2,1.53514078]
[1772440366842,0.001,1931.8,1931.4,1.53514078]
[1772440367141,0.001,1931.8,1931.2,1.6249445]
[1772440367349,3.17803927,1931.8,1931.0,1.29466597]
[1772440367651,1.88390617,1931.8,1931.0,2.74466597]
[1772440367814,3.17804958,1931.8,1931.0,2.74466597]
[1772440368315,1.88390617,1931.8,1931.0,2.74466597]
[1772440369148,1.88390617,1931.8,1931.0,4.36715052]
[1772440369649,1.88390617,1931.8,1931.0,5.9022913]
[1772440369951,3.17807226,1931.8,1931.0,4.36715052]
[1772440370128,3.17807226,1931.8,1931.0,1.29466597]
[1772440370129,1.88290617,1931.6,1931.0,1.29466597]
[1772440370645,1.88290617,1931.6,1930.9,5.1786639]
[1772440370847,1.88290617,1931.5,1930.9,5.1786639]
[1772440373248,3.17808842,1931.8,1930.9,6.79377059]
[1772440373953,1.88290617,1931.7,1930.9,6.79377059]
[1772440374530,3.17716999,1931.6,1930.9,6.79377059]
[1772440374853,1.88290617,1931.6,1930.9,6.79377059]
[1772440376648,3.17721735,1931.6,1930.9,6.79377059]
[1772440376819,1.88290617,1931.6,1930.9,6.79377059]
[1772440377722,1.88290617,1931.5,1930.9,6.79377059]
[1772440378551,1.88290617,1931.5,1931.0,0.0011]
[1772440379658,1.88390617,1931.7,1931.0,0.0011]
[1772440379858,0.001,1931.7,1931.4,3.13702324]
[1772440380031,0.001,1931.7,1931.3,1.451]
[1772440380553,0.001,1931.7,1931.0,3.05304326]
[1772440380755,1.88290617,1931.6,1931.1,1.29459893]
[1772440381441,0.001,1931.7,1931.2,3.13508404]
[1772440381625,1.88390617,1931.7,1931.1,1.29459893]
[1772440382528,0.001,1931.7,1931.3,1.53514078]
[1772440382725,0.001,1931.7,1931.4,1.29439784]
[1772440383045,1.88290617,1931.6,1931.0,1.29571483]
[1772440383950,1.88290617,1931.6,1931.0,2.8899067]
[1772440385262,1.88290617,1931.5,1931.0,1.29571483]
[1772440385427,1.88290617,1931.5,1931.0,1.29575081]
[1772440385753,5.17805529,1931.7,1931.3,1.590355]
[1772440385754,0.001,1931.7,1931.3,1.590355]
[1772440385929,0.00153886,1932.0,1931.4,3.12549578]
[1772440386130,0.00153886,1932.0,1931.6,3.12549578]
[1772440386333,1.88290617,1932.4,1931.8,1.53514078]
[1772440386544,1.88290617,1932.4,1931.6,3.12549578]
[1772440386734,1.88290617,1932.5,1931.7,1.58841519]
[1772440386930,1.88290617,1932.5,1931.6,4.57855597]
[1772440387160,1.88290617,1932.5,1931.8,1.53514078]
[1772440387436,1.88290617,1932.5,1931.9,1.29406283]
[1772440389343,4.90541935,1932.8,1931.9,3.11977869]
[1772440389538,1.88290617,1932.8,1931.9,3.11977869]
[1772440389750,0.00153886,1933.0,1932.6,1.53514078]
[1772440390075,0.00153886,1933.0,1932.8,1.53514078]
[1772440390437,0.00153886,1933.0,1932.6,2.98914078]
[1772440390659,0.00153886,1933.0,1932.4,3.1178449]
[1772440390978,0.00153886,1933.0,1932.4,4.5718449]
[1772440391340,0.00153886,1933.0,1932.5,1.29366106]
[1772440392040,1.88444503,1933.0,1932.2,5.17527982]
[1772440392368,1.88444503,1933.0,1932.2,1.29386191]
[1772440392572,1.88290617,1932.8,1932.1,1.454]
[1772440392880,1.88290617,1932.8,1932.1,2.74792291]
[1772440393369,1.88290617,1932.8,1932.0,1.2939552]
[1772440393567,1.29352718,1932.7,1931.9,5.17621721]
[1772440393773,1.88290617,1932.6,1931.9,5.17621721]
[1772440393982,1.88290617,1932.6,1931.9,1.29406283]
[1772440394997,1.83272201,1932.4,1931.7,1.29416808]
[1772440395678,3.12651696,1932.3,1931.6,1.29426382]
[1772440396088,1.83272201,1932.2,1931.6,1.29426382]
[1772440396596,1.83272201,1932.2,1931.3,1.29446486]
[1772440397290,1.92352217,1932.1,1931.3,1.29446486]
[1772440397593,3.21728181,1932.4,1931.6,3.43941811]
[1772440397823,1.92352217,1932.4,1931.8,2.14515429]
[1772440397998,1.92352217,1932.4,1931.6,6.46192876]
[1772440398164,1.92352217,1932.7,1931.7,1.56851065]
[1772440399888,3.21711528,1932.7,1931.8,1.29412982]
[1772440400310,1.29359311,1932.7,1931.8,1.29412982]
[1772440400595,1.92352217,1932.6,1931.8,1.29412982]
[1772440401996,1.92352217,1932.5,1931.8,1.29412982]
[1772440403598,1.92352217,1932.3,1931.7,1.29414857]
[1772440403979,1.92352217,1932.2,1931.6,1.29422435]
[1772440404463,1.92352217,1932.2,1931.5,1.29428512]
[1772440405270,1.92352217,1932.2,1931.9,0.0011]
[1772440406096,0.001,1932.5,1931.9,0.0011]
[1772440406097,4.93921743,1932.5,1931.9,0.0011]
[1772440406696,1.92352217,1932.4,1931.9,0.0011]
[1772440407481,1.92352217,1932.2,1931.5,1.29428512]
[1772440407682,1.92352217,1932.2,1931.3,1.29446486]
[1772440408704,1.92352217,1932.0,1931.2,5.17800062]
[1772440408913,1.92352217,1932.0,1931.1,2.84516853]
[1772440408914,1.92352217,1931.8,1931.1,1.29566341]
[1772440409110,1.92352217,1931.8,1931.1,1.29568985]
[1772440410222,1.92352217,1931.6,1931.1,0.0011]
[1772440410519,1.92352217,1931.4,1931.0,0.00263886]
[1772440411018,3.21792742,1931.4,1931.0,0.00263886]
[1772440411884,1.92352217,1931.2,1931.0,0.00263886]
[1772440412906,3.21805624,1931.2,1931.0,0.00263886]
[1772440413107,1.92352217,1931.1,1930.8,0.0011]
[1772440414104,3.64652217,1931.1,1930.8,0.0011]
[1772440414589,1.92352217,1931.1,1930.8,0.0011]
[1772440414791,1.724,1931.2,1930.8,0.0011]
[1772440415228,4.94165199,1931.8,1930.9,3.68339731]
[1772440415518,1.92352217,1931.7,1930.8,0.0011]
[1772440415703,1.92352217,1931.7,1930.8,1.53731043]
[1772440416090,5.16328411,1931.8,1930.8,1.53731043]
[1772440416091,1.92352217,1931.5,1930.8,0.0011]
[1772440416709,1.92352217,1931.3,1930.8,0.0011]
[1772440417917,3.21805406,1931.2,1930.8,0.0011]
[1772440418309,1.92352217,1931.1,1930.7,0.0011]
[1772440419511,1.725,1931.4,1930.7,0.0011]
[1772440419905,4.94292426,1931.4,1930.7,1.29596714]
[1772440420239,4.94292426,1931.4,1930.9,0.0011]
[1772440420440,4.94392426,1931.4,1930.9,0.0011]
[1772440420722,2.14515429,1931.2,1930.9,0.0011]
[1772440420898,1.92352217,1931.1,1930.9,0.0011]
[1772440421803,3.2181555,1931.1,1930.9,0.0011]
[1772440422911,1.92352217,1931.0,1930.9,0.0011]
[1772440423431,1.29458133,1931.2,1930.9,0.0011]
[1772440423603,1.92352217,1931.2,1930.9,0.0011]
[1772440424004,3.2180835,1931.2,1930.9,0.0011]
[1772440424405,1.92352217,1931.1,1930.9,0.0011]
[1772440424601,1.92352217,1931.1,1930.7,0.0011]
[1772440425433,1.73,1931.0,1930.7,0.0011]
[1772440425734,1.92352217,1930.9,1930.7,0.0011]
[1772440426112,1.29480008,1930.8,1930.2,5.180701]
[1772440426322,1.92352217,1930.7,1930.0,1.29682718]
[1772440426632,1.731,1930.6,1930.0,1.29682718]
[1772440427016,3.65452217,1930.6,1930.0,1.29682718]
[1772440427219,4.03888144,1930.4,1930.0,0.00153886]
[1772440427410,1.89372715,1930.4,1930.0,1.29687087]
[1772440427610,1.89372715,1930.4,1930.0,0.00153886]
[1772440428543,4.91971454,1930.6,1930.0,0.00153886]
[1772440428754,4.91966154,1930.6,1930.0,0.00153886]
[1772440428952,1.89372715,1930.5,1930.0,0.00153886]
[1772440430536,3.18879552,1930.4,1930.0,0.00153886]
[1772440430738,1.89372715,1930.4,1930.0,0.00153886]
[1772440431273,9.05601522,1930.6,1930.0,1.5060291]
[1772440431274,1.89372715,1930.6,1930.0,1.5060291]
[1772440431428,3.62572715,1931.0,1930.3,1.50449024]
[1772440431646,4.92039424,1931.0,1930.3,1.50449024]
[1772440431848,3.62572715,1931.0,1930.3,1.50449024]
[1772440432037,4.92039478,1931.0,1930.3,1.50449024]
[1772440432736,1.89372715,1930.9,1930.3,1.29508602]
[1772440432931,1.89472715,1930.9,1930.3,1.29508602]
[1772440433169,5.17786766,1931.3,1930.3,1.29508602]
[1772440433170,1.733,1931.4,1930.5,1.49968669]
[1772440433382,3.02739914,1931.4,1930.5,1.49968669]
[1772440433593,4.92112629,1931.4,1930.5,1.49968669]
[1772440433743,1.89372715,1931.3,1930.5,1.49968669]
[1772440434664,3.1881929,1931.3,1930.6,1.29493421]
[1772440435042,1.89372715,1931.3,1930.6,1.29493421]
[1772440435653,3.1881977,1931.3,1930.6,1.29493421]
[1772440436643,1.89372715,1931.3,1930.6,1.29493421]
[1772440436840,1.89372715,1931.3,1930.6,2.78512212]
[1772440438145,1.733,1931.4,1930.7,1.48780597]
[1772440438373,3.62672715,1931.4,1930.7,1.48780597]
[1772440438551,4.92113656,1931.4,1930.7,1.48780597]
[1772440438756,4.92113656,1931.4,1930.8,1.29480008]
[1772440439774,4.92112909,1931.4,1930.8,1.29480008]
[1772440440073,3.62672715,1931.4,1930.8,1.29480008]
[1772440440276,4.92112596,1931.4,1930.8,1.29480008]
[1772440440446,3.62672715,1931.4,1930.8,1.29480008]
[1772440440653,4.92112774,1931.4,1930.8,1.29480008]
[1772440442581,1.89372715,1931.3,1930.8,1.29480008]
[1772440442913,1.89372715,1931.0,1930.4,1.29501526]
[1772440443576,3.62572715,1931.0,1930.4,1.29501526]
[1772440444675,4.92041936,1931.0,1930.4,1.29501526]
[1772440444882,0.001,1930.9,1930.4,1.29501526]
[1772440445591,0.001,1930.9,1930.5,1.46894018]
[1772440446383,1.89472715,1930.9,1930.4,1.29501526]
[1772440446572,3.18852723,1930.8,1930.2,1.29520256]
[1772440446778,1.89372715,1930.7,1930.2,1.29520256]
[1772440448055,1.29573886,1930.9,1930.3,1.46424907]
[1772440448259,1.89472715,1930.9,1930.3,1.46424907]
[1772440449278,3.18946602,1930.9,1930.4,1.29506837]
[1772440449480,1.89372715,1930.6,1930.1,1.29635739]
[1772440450094,3.62572715,1930.8,1930.1,1.29635739]
[1772440450433,1.732,1930.7,1930.1,2.75593426]
[1772440451288,1.89372715,1930.8,1930.2,1.45724328]
[1772440451666,1.733,1930.9,1930.2,1.45724328]
[1772440451870,0.001,1930.9,1930.2,1.45724328]
[1772440453264,0.001,1930.9,1930.3,2.74774749]
[1772440453465,1.89472715,1930.9,1930.3,2.74774749]
[1772440453684,1.89472715,1930.9,1930.3,1.29513547]
[1772440455295,3.18948986,1930.9,1930.3,1.29513547]
[1772440455587,3.62572715,1930.9,1930.3,1.29513547]
[1772440455908,0.001,1930.9,1930.4,1.44584405]
[1772440456195,0.001,1930.9,1930.5,1.44584405]
[1772440457296,0.001,1930.9,1930.6,1.29493421]
[1772440460282,0.001,1930.9,1930.7,1.43672346]
[1772440460517,1.74937809,1931.4,1930.7,1.43672346]
[1772440460518,3.47937809,1931.4,1930.7,1.43672346]
[1772440460705,1.74837809,1931.3,1930.7,1.43672346]
[1772440461598,1.74837809,1931.3,1930.5,6.61089741]
[1772440461808,1.74837809,1931.3,1930.6,1.43116055]
[1772440463720,1.74837809,1931.3,1930.7,1.29486714]
[1772440465112,3.28216894,1931.2,1930.7,1.29486714]
[1772440465474,1.74837809,1930.9,1930.4,1.29612719]
[1772440466293,1.74837809,1930.9,1930.4,0.0011]
[1772440466847,1.69837809,1930.9,1930.4,0.0011]
[1772440469929,1.69837809,1930.9,1930.5,0.0011]
[1772440470133,5.54837809,1931.3,1930.6,1.46349596]
[1772440470332,3.04284503,1931.3,1930.6,1.46349596]
[1772440471420,1.74837809,1931.2,1930.5,1.4611]
[1772440471622,1.74837809,1930.9,1930.5,0.0011]
[1772440472145,1.74837809,1930.7,1930.5,0.0011]
[1772440473635,1.74837809,1930.5,1930.2,0.0011]
[1772440473936,1.74837809,1930.5,1930.2,1.296298]
[1772440474147,1.74837809,1930.5,1930.2,0.0011]
[1772440474951,3.04339354,1930.5,1930.2,0.0011]
[1772440475145,1.74837809,1930.4,1930.2,0.0011]
[1772440476637,1.73,1930.5,1930.2,0.0011]
[1772440477006,1.74837809,1930.6,1930.2,0.0011]
[1772440477232,3.47937809,1930.7,1930.2,1.44915848]
[1772440477434,3.47937809,1930.7,1930.2,0.0011]
[1772440477635,1.74837809,1930.6,1930.2,0.0011]
[1772440479144,1.74837809,1930.5,1930.2,0.0011]
[1772440479638,4.77428993,1930.7,1930.2,0.0011]
[1772440480836,3.47937809,1930.7,1930.2,0.0011]
[1772440481041,1.74837809,1930.6,1930.2,0.0011]
[1772440482440,1.74837809,1930.6,1930.3,0.0011]
[1772440482619,1.74837809,1930.6,1930.3,1.43592019]
[1772440482620,0.001,1930.6,1930.3,1.43592019]
[1772440482941,0.001,1930.6,1930.3,1.29618446]
[1772440483948,1.53379085,1930.4,1930.2,0.0011]
[1772440484128,3.28216894,1930.4,1930.2,0.0011]
[1772440484524,1.74837809,1930.4,1930.2,0.0011]
[1772440486841,1.74837809,1930.4,1930.0,0.00263886]
[1772440487050,1.74837809,1930.3,1930.0,0.00263886]
[1772440487619,1.8998027,1930.1,1929.6,0.0011]
[1772440487815,3.43359355,1929.9,1929.6,0.0011]
[1772440488543,1.8998027,1929.6,1929.4,0.0011]
[1772440488916,1.737,1929.7,1929.4,0.0011]
[1772440489121,1.737,1929.9,1929.4,1.42567502]
[1772440490147,3.6368027,1929.9,1929.4,0.0011]
[1772440492650,1.8998027,1929.8,1929.4,0.0011]
[1772440493020,3.43359355,1929.8,1929.4,0.0011]
[1772440493220,3.43359355,1929.6,1929.0,6.60431213]
[1772440493439,3.43359355,1929.6,1929.1,1.29594111]
[1772440494445,3.43359355,1929.6,1929.5,0.0011]
[1772440494643,3.43359355,1929.6,1929.1,1.29594111]
[1772440494844,3.43359355,1929.6,1929.4,0.0011]
[1772440495149,4.73010289,1929.8,1929.4,0.0011]
[1772440495348,3.6398027,1929.8,1929.4,0.0011]
[1772440495550,1.74,1929.8,1929.4,0.0011]
[1772440496151,3.6398027,1929.8,1929.4,0.0011]
[1772440498046,1.9008027,1929.8,1929.4,1.2968396]
[1772440498248,0.001,1929.8,1929.5,1.40818538]
[1772440498449,1.9008027,1929.8,1929.4,1.2968396]
[1772440499249,1.9008027,1929.8,1929.4,0.0011]
[1772440499455,3.43359355,1929.7,1929.4,0.0011]
[1772440500477,1.8998027,1929.6,1929.2,1.29696138]
[1772440501757,0.001,1929.8,1929.3,1.39966678]
[1772440502235,3.43459355,1929.8,1929.2,2.69662816]
[1772440503658,3.43459355,1929.8,1929.3,1.39537225]
[1772440503961,1.742,1930.1,1929.3,1.39537225]
[1772440504538,1.742,1930.1,1929.5,1.39537225]
[1772440504862,3.6418027,1930.1,1929.5,1.39537225]
[1772440505172,4.93707648,1930.1,1929.5,1.39537225]
[1772440505566,4.93707704,1930.1,1929.5,1.39537225]
[1772440505734,3.6418027,1930.1,1929.5,1.39537225]
[1772440506080,1.742,1930.4,1929.5,1.39537225]
[1772440506367,3.6418027,1930.4,1929.7,1.39111816]
[1772440506568,6.47066805,1930.4,1929.9,1.38898283]
[1772440506788,5.17559355,1930.4,1929.9,1.38898283]
[1772440507153,6.47067581,1930.4,1929.9,1.38898283]
[1772440507689,5.17559355,1930.4,1929.8,2.68231531]
[1772440507897,6.47066546,1930.4,1929.8,2.68231531]
[1772440508194,1.8998027,1930.3,1929.8,2.68231531]
[1772440508379,1.8998027,1930.3,1929.8,1.29547103]
[1772440508786,1.53379085,1930.2,1929.7,5.18188413]
[1772440509592,1.53379085,1930.2,1929.7,6.56446795]
[1772440509987,1.8998027,1930.3,1929.7,6.56446795]
[1772440510296,1.8998027,1930.3,1929.8,1.38258382]
[1772440510817,5.18088739,1930.6,1929.8,1.38258382]
[1772440510818,0.001,1930.6,1930.0,1.38045863]
[1772440511565,1.9008027,1930.6,1930.0,1.38045863]
[1772440511767,3.43359355,1930.4,1929.9,1.2954039]
[1772440512062,1.8998027,1930.3,1929.8,1.29541859]
[1772440512258,2.82973244,1930.6,1929.9,1.37835909]
[1772440512454,0.30696846,1930.5,1929.9,1.37835909]
[1772440512696,0.30696846,1930.4,1929.9,1.37835909]
[1772440512873,0.001,1930.6,1930.1,1.37623656]
[1772440513190,0.00153886,1931.0,1930.4,1.68220502]
[1772440513382,0.30850732,1931.0,1930.4,1.37523656]
[1772440513563,0.30696846,1930.9,1930.4,1.37523656]
[1772440514390,0.30696846,1930.8,1930.2,2.83502545]
[1772440514591,1.85509993,1930.9,1930.2,2.83502545]
[1772440514797,1.85509993,1930.9,1930.4,1.29506837]
[1772440515294,1.85509993,1930.9,1930.3,1.29508189]
[1772440515295,1.85509993,1930.7,1930.3,1.29508189]
[1772440515587,1.85509993,1930.7,1930.2,1.29515509]
[1772440516769,4.00337508,1930.6,1929.9,2.66234011]
[1772440517092,5.18511003,1930.8,1930.0,1.36483137]
[1772440517296,7.04578083,1930.8,1930.0,1.36483137]
[1772440518023,4.89750568,1930.8,1930.0,1.36483137]
[1772440518204,3.6026708,1930.8,1930.0,1.36483137]
[1772440518491,1.8606708,1930.7,1930.0,1.36483137]
[1772440519593,1.8606708,1930.6,1930.1,1.29526967]
[1772440520185,4.00894595,1930.4,1929.8,1.36071501]
[1772440520482,1.8606708,1930.3,1929.6,4.12125317]
[1772440520866,1.8606708,1930.3,1929.7,1.35862105]
[1772440521093,2.14827515,1930.6,1929.7,1.35862105]
[1772440521094,1.8606708,1930.5,1929.7,1.35862105]
[1772440521573,1.29506837,1930.4,1929.8,1.29547103]
[1772440521766,3.15573917,1930.4,1929.8,1.29547103]
[1772440521968,1.8606708,1930.6,1929.9,1.35653191]
[1772440522223,0.001,1930.7,1929.9,1.35653191]
[1772440522369,0.001,1930.7,1930.1,1.35653191]
[1772440522882,1.86220966,1931.0,1930.1,1.35653191]
[1772440523094,0.00153886,1931.0,1930.3,1.35344641]
[1772440523305,0.00153886,1931.0,1930.5,1.35344641]
[1772440523673,0.00153886,1931.0,1930.6,2.64630132]
[1772440525092,0.00153886,1931.0,1930.6,1.29493421]
[1772440525688,0.00153886,1931.0,1930.5,5.17973686]
[1772440525895,0.00153886,1931.0,1930.5,6.52698541]
[1772440526098,0.00153886,1931.0,1930.6,1.34724855]
[1772440527073,0.00153886,1931.0,1930.5,5.17973686]
[1772440527291,1.86220966,1931.0,1930.5,2.76300129]
[1772440528099,0.00153886,1931.0,1930.6,1.34310604]
[1772440530705,0.00153886,1931.0,1930.7,1.29486714]
[1772440531310,0.001,1930.9,1930.7,1.29486714]
[1772440531679,0.001,1930.9,1930.7,2.62972865]
[1772440532710,0.001,1930.9,1930.6,5.17946858]
[1772440532711,0.001,1930.9,1930.8,1.33280818]
[1772440533791,0.001,1930.9,1930.6,6.5102334]
[1772440534194,1.8606708,1930.7,1930.1,2.77230861]
[1772440534408,1.85946356,1930.7,1930.1,2.77230861]
[1772440535195,1.85946356,1930.7,1930.1,1.29630861]
[1772440535395,1.8606708,1930.6,1930.1,1.29630861]
[1772440537910,1.8606708,1930.6,1930.1,2.62018467]
[1772440538110,1.8606708,1930.5,1930.1,1.29630861]
[1772440538813,1.29485169,1930.8,1930.1,1.29630861]
[1772440539018,1.8606708,1930.7,1930.1,2.61818118]
[1772440539222,0.001,1930.9,1930.5,1.32187257]
[1772440539427,0.001,1931.4,1930.9,1.32087257]
[1772440539730,0.001,1931.4,1931.1,1.31883832]
[1772440541722,0.001,1931.4,1931.2,1.29453189]
[1772440543816,1.8606708,1931.3,1930.8,1.485]
[1772440545037,1.8606708,1931.3,1930.8,1.4861]
[1772440545240,1.8616708,1931.3,1930.8,1.4861]
[1772440545750,1.8616708,1931.3,1930.9,1.29473302]
[1772440548093,1.8616708,1931.3,1930.8,2.78088832]
[1772440548094,1.8028377,1931.2,1930.8,2.78088832]
[1772440548350,1.8028377,1931.2,1930.8,1.4861]
[1772440548846,1.8028377,1931.2,1930.8,0.0011]
[1772440549050,5.17863289,1931.4,1930.9,1.3009235]
[1772440549051,0.001,1931.4,1930.9,1.3009235]
[1772440549263,0.001,1931.4,1931.0,4.93619865]
[1772440549428,1.8038377,1931.4,1930.8,2.59680781]
[1772440549756,1.8038377,1931.4,1930.9,1.487]
[1772440550066,1.8038377,1931.4,1931.0,1.29466597]
[1772440550446,1.8028377,1931.3,1930.9,1.487]
[1772440551320,1.8028377,1931.3,1930.9,2.7817303]
[1772440551717,1.8028377,1931.3,1930.9,1.2947303]
[1772440551917,1.8028377,1931.3,1930.8,0.0011]
[1772440552157,1.29450171,1931.3,1930.8,0.0011]
[1772440552342,1.8028377,1931.2,1930.8,0.0011]
[1772440554958,3.09737457,1931.2,1930.8,0.0011]
[1772440555126,1.8028377,1931.2,1930.8,0.0011]
[1772440557977,0.001,1931.4,1931.1,1.28310281]
[1772440558175,0.001,1931.4,1931.2,1.28310281]
[1772440558362,1.8028377,1931.8,1931.3,1.29446486]
[1772440558777,1.80437656,1932.0,1931.3,2.57459162]
[1772440558958,1.8028377,1931.9,1931.3,1.29446486]
[1772440560879,1.8028377,1931.9,1930.9,0.0011]
[1772440560880,1.8028377,1931.4,1930.9,0.0011]
[1772440561077,1.8028377,1931.2,1930.9,0.0011]
[1772440562058,1.8028377,1931.2,1930.9,1.29577713]
[1772440562265,1.8028377,1931.7,1930.9,1.29577713]
[1772440562761,1.29426382,1931.6,1930.9,0.0011]
[1772440563079,1.8028377,1931.5,1930.9,0.0011]
[1772440563681,1.8028377,1931.3,1930.9,0.0011]
[1772440564859,1.8028377,1931.1,1930.8,0.0011]
[1772440565184,3.95111285,1931.1,1930.8,0.0011]
[1772440565477,1.8028377,1931.0,1930.6,0.0011]
[1772440565885,1.8028377,1930.8,1930.6,0.0011]
[1772440566896,1.8028377,1931.2,1930.6,0.0011]
[1772440567055,1.8028377,1931.2,1930.6,1.2668732]
[1772440567555,1.8028377,1931.4,1930.6,1.2668732]
[1772440567883,1.8028377,1931.3,1930.6,1.2668732]
[1772440568786,1.8028377,1931.1,1930.6,0.0011]
[1772440568995,1.8028377,1931.0,1930.6,0.0011]
[1772440569757,1.8028377,1931.0,1930.7,0.0011]